fUSD/lending_fUSD_20240222
["ID","MTS","AMOUNT","RATE_DAILY","PERIOD"]
[314840289,1708583433424,-176.21,0.000317,2]
[314840290,1708583433434,-155.65,0.000317,2]
[314840291,1708583433443,-154.57906115,0.00032117,2]
[314840292,1708583433453,-166.83,0.00032132,2]
[314840293,1708583433463,-177.09,0.00032323,10]
[314840294,1708583433472,-851.33,0.00032324,2]
[314840295,1708583433481,-150.99,0.00032384,2]
[314840296,1708583433491,-499.99,0.00032384,2]
[314840297,1708583433500,-216.0,0.00032505,2]
[314840298,1708583433510,-154.57906115,0.00032542,2]
[314840299,1708583433520,-250.0,0.00032579,2]
[314840300,1708583433530,-1428.58,0.00032608,2]
[314840301,1708583433539,-649.81,0.00032656,2]
[314840302,1708583433549,-150.0,0.00032656,2]
[314840303,1708583433558,-177.69,0.000327,2]
[314840304,1708583433567,-164.35556735,0.000327,2]
[314840305,1708583433577,-258.77,0.00032877,2]
[314840306,1708583433586,-250.0,0.00032877,2]
[314840307,1708583433596,-153.14,0.00032877,2]
[314840308,1708583433606,-159.01,0.0003292,2]
[314840309,1708583433615,-154.57906115,0.00032967,2]
[314840310,1708583433624,-446.1551916,0.00033,2]
[314840311,1708583433633,-1428.43,0.00033234,2]
[314840312,1708583433642,-177.69,0.00033248,2]
[314840313,1708583433654,-159.01,0.00033349,2]
[314840314,1708583433663,-154.57906115,0.00033392,2]
[314840315,1708583433673,-784.0,0.00033453,2]
[314840316,1708583433682,-156.36,0.00033594,2]
[314840317,1708583433692,-434.84,0.00033688,2]
[314840318,1708583433703,-730.45,0.00033692,2]
[314840319,1708583433712,-20482.0,0.000337,2]
[314840320,1708583433722,-159.01,0.00033778,2]
[314840321,1708583433731,-177.69,0.00033796,2]
[314840322,1708583433741,-154.57906115,0.00033817,2]
[314840323,1708583433750,-184.6,0.00033881,2]
[314840324,1708583433760,-1528.0,0.00033949,2]
[314840325,1708583433769,-156.36,0.00034074,2]
[314840326,1708583433778,-159.01,0.00034207,2]
[314840327,1708583433789,-154.57906115,0.00034241,2]
[314840328,1708583433798,-177.69,0.00034344,2]
[314840329,1708583433808,-157.8293935,0.00034355,3]
[314840330,1708583433819,-1423.81,0.00034381,2]
[314840331,1708583433828,-155.0,0.00034416,2]
[314840332,1708583433837,-19725.671,0.00034421,2]
[314840333,1708583433848,-2421.118298,0.0003452,2]
[314840334,1708583433857,-26514.536647,0.0003452,2]
[314840335,1708583433868,-371.904026,0.0003452,2]
[314840336,1708583433878,-3737.19,0.00034521,2]
[314840337,1708583433888,-156.36,0.00034554,2]
[314840338,1708583433900,-166.83,0.00034582,2]
[314840339,1708583433910,-166.21,0.00034582,2]
[314840340,1708583433920,-176.21,0.00034582,2]
[314840341,1708583433929,-159.01,0.00034636,2]
[314840342,1708583433938,-154.57906115,0.00034666,2]
[314840343,1708583433947,-281.5307,0.00034694,2]
[314840344,1708583433957,-253.54161317,0.000347,2]
[314840345,1708583433966,-3631.677447,0.00034794,2]
[314840346,1708583433975,-39771.804971,0.00034794,2]
[314840347,1708583433984,-557.856039,0.00034794,2]
[314840348,1708583433993,-2500.0,0.00034829,2]
[314840349,1708583434002,-474.4261,0.00034831,2]
[314840350,1708583434011,-1000.0,0.00034831,2]
[314840351,1708583434020,-245.0,0.00034869,3]
[314840352,1708583434029,-150.0,0.0003489,2]
[314840353,1708583434038,-150.0,0.0003489,2]
[314840354,1708583434048,-495.65193659,0.0003489,5]
[314840355,1708583434057,-177.69,0.00034892,2]
[314840356,1708583434066,-150.0,0.000349,2]
[314840357,1708583434075,-5506.89816226,0.000349,2]
[314840358,1708583434088,-818.28656274,0.000349,2]
[314840359,1708583434097,-6325.18472486,0.000349,2]
[314840360,1708583434107,-1000.0,0.00034929,4]
[314840361,1708583434116,-205.96768336,0.00034929,2]
[314840362,1708583434125,-11023.06553025,0.00034929,4]
[314840363,1708583434141,-279.92831739,0.00034929,4]
[314840364,1708583434154,-3182.31075959,0.00034929,4]
[314840365,1708583434243,-50.99098208,0.00034929,4]
[314840366,1708583434259,-5021.2258,0.00034929,4]
[314840374,1708583438252,-800.0,0.00027,3]
[314840375,1708583438262,-915.93,0.00028818,2]
[314840376,1708583438272,-850.0,0.00029,3]
[314840377,1708583438283,-915.93,0.00030462,2]
[314840378,1708583438292,-915.93,0.00032106,2]
[314840379,1708583438302,-915.93,0.0003375,2]
[314840380,1708583438311,-53790.73367219,0.00034929,4]
[314840381,1708583438322,-8808.58177532,0.0003493,2]
[314840382,1708583438335,-1966.29882468,0.0003493,2]
[314840383,1708583438344,-4842.236597,0.00034931,2]
[314840384,1708583438353,-53029.073295,0.00034931,2]
[314840385,1708583438363,-743.808052,0.00034931,2]
[314840386,1708583438373,-6325.18472486,0.00034931,2]
[314840387,1708583438382,-6325.18472486,0.00034982,2]
[314840388,1708583438392,-5231.0,0.00035,5]
[314840389,1708583438402,-5000.0,0.00035,7]
[314840390,1708583438412,-490.29809702,0.00035,4]
[314840391,1708583438422,-13182.17341829,0.00035,4]
[314840392,1708583438431,-560.27149417,0.00035,2]
[314840393,1708583438444,-3439.72850583,0.00035,2]
[314840394,1708583438453,-2689.10152279,0.00035032,2]
[314840395,1708583438478,-279.39887565,0.00035032,2]
[314840396,1708583438489,-342.79972744,0.00035032,2]
[314840397,1708583438500,-785.92464769,0.00035032,2]
[314840398,1708583438512,-669.42707453,0.00035032,2]
[314840399,1708583438707,-222.91701029,0.00035032,2]
[314840400,1708583438719,-380.16425253,0.00035032,2]
[314840403,1708583439547,-955.45161394,0.00035032,2]
[314840405,1708583439557,-156.36,0.00035033,2]
[314840407,1708583439567,-161.16001633,0.00035068,2]
[314840409,1708583439579,-630.775,0.00035068,2]
[314840411,1708583439591,-1636.26722083,0.00035068,2]
[314840414,1708583439607,-3624.59350884,0.00035068,2]
[314840416,1708583439616,-23650.51232448,0.00035068,2]
[314840598,1708583441444,-2321.49,0.00035068,2]
[314840607,1708583441516,-4019.09127962,0.00035068,2]
[314840614,1708583441572,-3682.81692732,0.00035068,2]
[314840621,1708583441628,-455.89466373,0.00035068,2]
[314840800,1708583443379,-284.83040661,0.00035068,2]
[314840803,1708583443393,-954.62598083,0.00035068,2]
[314841027,1708583446566,-10254.73064999,0.00034932,2]
[314841028,1708583446577,-1341.87596644,0.00035067,4]
[314841029,1708583446587,-30917.08003641,0.00035068,2]
[314841030,1708583446597,-929.760065,0.00035068,2]
[314841031,1708583446607,-6325.18472486,0.00035083,2]
[314841032,1708583446617,-154.57906115,0.00035091,2]
[314841033,1708583446627,-800.0,0.00035123,2]
[314841034,1708583446636,-6325.18472486,0.00035133,2]
[314841035,1708583446646,-150.0,0.00035164,2]
[314841036,1708583446656,-1233.3473,0.00035173,2]
[314841037,1708583446666,-6325.18472486,0.00035184,2]
[314841038,1708583446675,-6325.18472486,0.00035234,2]
[314841039,1708583446685,-3511.6339651,0.00035242,2]
[314841040,1708583446694,-6325.18472486,0.00035285,2]
[314841041,1708583446704,-1000.0,0.000353,7]
[314841042,1708583446714,-258.77,0.00035312,2]
[314841043,1708583446724,-1000.0,0.00035316,2]
[314841044,1708583446733,-1414.8489,0.00035316,2]
[314841045,1708583446743,-528.27347835,0.00035317,2]
[314841046,1708583446752,-800.0,0.00035331,2]
[314841047,1708583446762,-6325.18472486,0.00035335,2]
[314841048,1708583446772,-3667.23,0.00035341,2]
[314841049,1708583446782,-8473.914044,0.00035342,2]
[314841050,1708583446792,-92800.878267,0.00035342,2]
[314841051,1708583446802,-1301.664092,0.00035342,2]
[314841052,1708583446811,-163.34,0.00035342,2]
[314841053,1708583446821,-6325.18472486,0.00035386,2]
[314841054,1708583446830,-915.93,0.00035393,2]
[314841055,1708583446840,-202025.44707302,0.00035416,2]
[314841056,1708583446852,-336.210302,0.00035416,2]
[314841057,1708583446864,-1433.49229833,0.00035416,2]
[314841058,1708583446900,-18898.55083062,0.00035416,2]
[314841086,1708584631923,-166.08064409,0.00028717,2]
[314841088,1708584631932,-204.39955188,0.00028816,2]
[314841090,1708584631942,-300.0,0.00028817,2]
[314841092,1708584631951,-362.36,0.00028818,2]
[314841094,1708584631961,-1000.0,0.00028818,2]
[314841095,1708584631970,-250.0,0.00028818,2]
[314841096,1708584631981,-2971.34,0.00028818,2]
[314841097,1708584631990,-2000.0,0.00028818,2]
[314841098,1708584632000,-152.65,0.00028818,2]
[314841099,1708584632011,-324.9,0.00028818,2]
[314841100,1708584632021,-250.0,0.00028818,2]
[314841101,1708584632033,-150.0,0.00028876,2]
[314841102,1708584632042,-152.65,0.00030462,2]
[314841103,1708584632052,-584.36,0.00030922,2]
[314841104,1708584632061,-204.0,0.00031096,3]
[314841105,1708584632070,-184.6,0.00031642,2]
[314841106,1708584632080,-155.65,0.000317,2]
[314841107,1708584632090,-277.0,0.00031981,2]
[314841108,1708584632100,-499.99,0.00032049,2]
[314841109,1708584632109,-1444.35,0.00032049,2]
[314841110,1708584632118,-152.65,0.00032106,2]
[314841111,1708584632127,-1000.0,0.0003242,2]
[314841112,1708584632136,-209.0,0.00032445,2]
[314841113,1708584632146,-277.0,0.00032529,2]
[314841114,1708584632157,-23900.0,0.00032761,2]
[314841115,1708584632167,-1432.78,0.00032782,2]
[314841116,1708584632177,-156.62,0.00032877,2]
[314841117,1708584632186,-172.15,0.00032877,2]
[314841118,1708584632196,-2284.44,0.00032911,2]
[314841119,1708584632205,-277.0,0.00033077,2]
[314841120,1708584632216,-584.36,0.00033186,2]
[314841121,1708584632225,-177.69,0.00033222,2]
[314841122,1708584632237,-158.04021491,0.00033355,2]
[314841123,1708584632246,-277.0,0.00033625,2]
[314841124,1708584632256,-162.77,0.00033684,2]
[314841125,1708584632267,-152.65,0.0003375,2]
[314841126,1708584632276,-177.69,0.0003377,2]
[314841127,1708584632285,-242.04478419,0.00034,2]
[314841128,1708584632295,-150.0,0.00034,2]
[314841129,1708584632305,-473.32138968,0.00034,2]
[314841130,1708584632314,-277.0,0.00034173,2]
[314841131,1708584632323,-157.0,0.000342,2]
[314841132,1708584632334,-177.69,0.00034318,2]
[314841133,1708584632344,-160.91304951,0.00034355,3]
[314841134,1708584632355,-2989.75,0.00034521,2]
[314841135,1708584632365,-242.15861588,0.00034548,2]
[314841136,1708584632375,-277.0,0.00034721,2]
[314841137,1708584632385,-878.5219,0.00034729,2]
[314841138,1708584632395,-209.0,0.00034741,6]
[314841139,1708584632405,-157.0,0.00034748,2]
[314841140,1708584632415,-800.0,0.00034767,2]
[314841141,1708584632425,-991.2057,0.000348,2]
[314841142,1708584632434,-1000.0,0.000348,2]
[314841143,1708584632444,-2500.0,0.000348,2]
[314841144,1708584632454,-2500.0,0.000348,16]
[314841145,1708584632463,-2500.0,0.000348,16]
[314841146,1708584632473,-2500.0,0.000348,16]
[314841147,1708584632483,-757.43175713,0.00034828,2]
[314841148,1708584632492,-49065.18858228,0.00034829,2]
[314841149,1708584632505,-1411.27517657,0.00034829,2]
[314841150,1708584632517,-435.44686443,0.00034829,2]
[314841151,1708584632569,-26191.11847672,0.00034829,2]
[314841152,1708584632580,-177.69,0.00034866,2]
[314841153,1708584632589,-150.0,0.0003489,2]
[314841154,1708584632598,-1386.4297,0.000349,2]
[314841155,1708584632607,-52312.35763466,0.000349,2]
[314841156,1708584632618,-800.0,0.000349,2]
[314841157,1708584632631,-911.17947886,0.000349,2]
[314841158,1708584632664,-353.62981947,0.000349,2]
[314841159,1708584632675,-1778.08920812,0.000349,2]
[314841160,1708584632707,-3459.30250167,0.000349,2]
[314841161,1708584632741,-40385.44135722,0.000349,2]
[314841162,1708584632750,-5000.0,0.000349,3]
[314841163,1708584632760,-347.37320612,0.00035,2]
[314841164,1708584632769,-1973.74656075,0.00035,2]
[314841165,1708584632778,-13182.17341829,0.00035,4]
[314841166,1708584632788,-2455.0,0.00035,20]
[314841167,1708584632797,-2990.0,0.00035,15]
[314841168,1708584632806,-2000.0,0.00035,10]
[314841169,1708584632815,-1066.72694436,0.0003516,7]
[314841170,1708584632825,-246.24713571,0.0003525,7]
[314841171,1708584632834,-2694.0,0.0003526,2]
[314841172,1708584632843,-1869.0,0.0003526,2]
[314841173,1708584632853,-955.0,0.0003526,2]
[314841174,1708584632862,-1231.0,0.0003526,2]
[314841175,1708584632872,-216.0,0.0003526,2]
[314841176,1708584632881,-1257.0,0.0003526,2]
[314841177,1708584632891,-1953.0,0.0003526,2]
[314841178,1708584632900,-302.0,0.0003526,2]
[314841179,1708584632909,-270.388,0.0003526,2]
[314841180,1708584632918,-455.0,0.0003526,2]
[314841181,1708584632927,-19886.0,0.0003526,2]
[314841182,1708584632936,-2294.0,0.0003526,2]
[314841183,1708584632945,-8180.0,0.0003526,2]
[314841184,1708584632954,-403.579,0.0003526,2]
[314841185,1708584632963,-1039.0,0.0003526,2]
[314841186,1708584632974,-150.0,0.0003526,2]
[314841187,1708584632985,-150.0,0.00035267,2]
[314841188,1708584632994,-268.0,0.00035268,2]
[314841189,1708584633003,-160.0,0.00035296,2]
[314841190,1708584633012,-157.0,0.00035296,2]
[314841191,1708584633022,-1000.0,0.000353,7]
[314841192,1708584633030,-152.65,0.00035393,2]
[314841193,1708584633040,-800.0,0.00035397,2]
[314841194,1708584633050,-984.98854284,0.00035406,7]
[314841195,1708584633059,-490.29809702,0.00035414,4]
[314841196,1708584633068,-177.69,0.00035414,2]
[314841197,1708584633077,-500.0,0.00035416,2]
[314841198,1708584633086,-81396.3413,0.00035416,2]
[314841199,1708584633095,-3009.56911835,0.00035416,10]
[314841200,1708584633105,-6552.80522629,0.00035416,4]
[314841201,1708584633114,-2000.0,0.00035416,2]
[314841202,1708584633123,-793.30155333,0.00035416,7]
[314841203,1708584633132,-3000.0,0.00035416,2]
[314841204,1708584633141,-1066.72694431,0.00035446,7]
[314841205,1708584633150,-584.36,0.0003545,2]
[314841206,1708584633159,-800.0,0.00035466,2]
[314841207,1708584633169,-151.022215,0.00035498,2]
[314841208,1708584633179,-151.022215,0.00035498,2]
[314841209,1708584633188,-151.022215,0.00035498,2]
[314841210,1708584633197,-151.022215,0.00035498,2]
[314841211,1708584633207,-151.022215,0.00035498,2]
[314841212,1708584633217,-151.022215,0.00035498,2]
[314841213,1708584633227,-151.022215,0.00035498,2]
[314841214,1708584633240,-151.022215,0.00035498,2]
[314841215,1708584633250,-151.022215,0.00035498,2]
[314841216,1708584633259,-151.022215,0.00035498,2]
[314841217,1708584633269,-197.022215,0.00035498,2]
[314841218,1708584633278,-126.09006775,0.00035498,2]
[314841219,1708584637403,-933.30459636,0.000348,20]
[314841220,1708584637415,-1418.11365202,0.000348,20]
[314841221,1708584637470,-148.58175162,0.000348,20]
[314841222,1708584637481,-2500.0,0.000348,20]
[314841223,1708584637490,-150.0,0.0003526,2]
[314841224,1708584637499,-4000.0,0.00035416,2]
[314841225,1708584637509,-42.93214725,0.00035498,2]
[314841226,1708584637519,-738.74140713,0.00035504,7]
[314841227,1708584637529,-505.1768332,0.00035505,4]
[314841228,1708584637539,-214.74670147,0.00035505,4]
[314841229,1708584637549,-200.0,0.00035507,3]
[314841230,1708584637562,-156.36,0.00035513,2]
[314841231,1708584637571,-54020.50106063,0.00035514,2]
[314841232,1708584637581,-55555.0,0.00035516,3]
[314841233,1708584637590,-1181.66914813,0.00035516,8]
[314841234,1708584637600,-151.58842651,0.00035516,2]
[314841235,1708584637610,-201.79481351,0.00035516,2]
[314841236,1708584637619,-528.22073563,0.00035516,2]
[314841237,1708584637629,-23834.94545026,0.000356,2]
[314841238,1708584637640,-20000.0,0.000356,4]
[314841239,1708584637650,-200.0,0.00035602,3]
[314841240,1708584637660,-800.0,0.00035602,2]
[314841241,1708584637669,-200.0,0.00035602,10]
[314841242,1708584637679,-500.0,0.00035602,10]
[314841243,1708584637689,-200.0,0.00035602,10]
[314841244,1708584637699,-200.0,0.00035603,2]
[314841245,1708584637710,-346.0,0.00035603,2]
[314841246,1708584637720,-1413.48758834,0.00035614,4]
[314841247,1708584637729,-506.70195543,0.00035614,2]
[314841248,1708584637740,-175.45429275,0.00035614,4]
[314841249,1708584637749,-279.52323536,0.00035616,3]
[314841250,1708584637759,-563.04296095,0.00035616,2]
[314841252,1708584637768,-500.0,0.00035616,2]
[314841254,1708584637778,-501.53014752,0.00035616,2]
[314841256,1708584637788,-500.0,0.00035616,2]
[314841258,1708584637797,-182.87205486,0.00035616,2]
[314841260,1708584637806,-500.0,0.00035616,15]
[314841262,1708584637816,-500.0,0.00035616,2]
[314841263,1708584637826,-500.0,0.00035616,2]
[314841265,1708584637835,-500.0,0.00035616,2]
[314841267,1708584637844,-502.07520239,0.00035616,2]
[314841269,1708584637854,-645.21,0.00035616,2]
[314841271,1708584637863,-500.0,0.00035616,2]
[314841273,1708584637873,-500.0,0.00035616,2]
[314841275,1708584637882,-500.0,0.00035616,2]
[314841277,1708584637892,-500.0,0.00035616,2]
[314841279,1708584637901,-500.0,0.00035616,2]
[314841281,1708584637910,-500.0,0.00035616,2]
[314841283,1708584637920,-150.70890816,0.00035616,2]
[314841285,1708584637930,-500.0,0.00035616,2]
[314841287,1708584637939,-500.0,0.00035616,2]
[314841289,1708584637948,-500.0,0.00035616,2]
[314841291,1708584637957,-513.6499843,0.00035616,2]
[314841293,1708584637967,-500.0,0.00035616,2]
[314841296,1708584637976,-150.0,0.00035616,2]
[314841298,1708584637986,-554.06794135,0.00035616,2]
[314841299,1708584637995,-500.0,0.00035616,2]
[314841302,1708584638005,-500.0,0.00035616,2]
[314841304,1708584638014,-535.86,0.00035616,2]
[314841306,1708584638023,-500.0,0.00035616,2]
[314841308,1708584638032,-500.0,0.00035616,2]
[314841310,1708584638041,-500.0,0.00035616,2]
[314841312,1708584638050,-500.0,0.00035616,2]
[314841314,1708584638059,-608.08,0.00035616,2]
[314841316,1708584638068,-500.0,0.00035616,2]
[314841318,1708584638077,-500.0,0.00035616,2]
[314841320,1708584638086,-510.2892531,0.00035616,2]
[314841322,1708584638095,-504.6021709,0.00035616,2]
[314841324,1708584638104,-500.0,0.00035616,2]
[314841326,1708584638113,-500.0,0.00035616,2]
[314841328,1708584638122,-500.0,0.00035616,2]
[314841330,1708584638132,-500.0,0.00035616,2]
[314841332,1708584638140,-500.0,0.00035616,2]
[314841334,1708584638149,-500.0,0.00035616,2]
[314841336,1708584638158,-500.0,0.00035616,2]
[314841338,1708584638167,-511.08548479,0.00035616,2]
[314841340,1708584638176,-500.0,0.00035616,2]
[314841342,1708584638185,-500.0,0.00035616,2]
[314841344,1708584638194,-500.0,0.00035616,2]
[314841345,1708584638204,-500.0,0.00035616,2]
[314841346,1708584638213,-500.0,0.00035616,2]
[314841347,1708584638222,-500.0,0.00035616,2]
[314841348,1708584638232,-500.0,0.00035616,2]
[314841349,1708584638241,-506.5349611,0.00035616,2]
[314841350,1708584638251,-500.0,0.00035616,2]
[314841351,1708584638260,-500.0,0.00035616,2]
[314841352,1708584638269,-413.67573617,0.00035616,2]
[314841353,1708584638279,-500.0,0.00035616,2]
[314841354,1708584638289,-521.42065168,0.00035616,2]
[314841355,1708584638298,-500.0,0.00035616,2]
[314841356,1708584638308,-500.0,0.00035616,2]
[314841357,1708584638317,-500.0,0.00035616,2]
[314841358,1708584638326,-500.0,0.00035616,2]
[314841359,1708584638335,-500.0,0.00035616,2]
[314841360,1708584638344,-500.0,0.00035616,2]
[314841361,1708584638353,-500.0,0.00035616,2]
[314841362,1708584638362,-500.0,0.00035616,2]
[314841363,1708584638371,-500.0,0.00035616,2]
[314841364,1708584638380,-500.0,0.00035616,2]
[314841365,1708584638389,-500.0,0.00035616,2]
[314841366,1708584638399,-510.15711744,0.00035616,2]
[314841367,1708584638409,-1040.47,0.00035616,2]
[314841368,1708584638418,-500.0,0.00035616,2]
[314841369,1708584638427,-500.0,0.00035616,2]
[314841370,1708584638437,-500.0,0.00035616,2]
[314841371,1708584638446,-500.0,0.00035616,2]
[314841372,1708584638455,-500.0,0.00035616,2]
[314841373,1708584638465,-500.0,0.00035616,2]
[314841374,1708584638474,-585.27,0.00035616,2]
[314841375,1708584638484,-500.0,0.00035616,2]
[314841376,1708584638493,-500.0,0.00035616,2]
[314841377,1708584638502,-460.68114316,0.00035616,2]
[314841378,1708584638513,-500.0,0.00035616,2]
[314841379,1708584638522,-500.0,0.00035616,2]
[314841380,1708584638531,-500.0,0.00035616,2]
[314841381,1708584638543,-500.0,0.00035616,2]
[314841382,1708584638553,-507.81805099,0.00035616,2]
[314841383,1708584638562,-565.93633082,0.00035616,2]
[314841384,1708584638571,-500.0,0.00035616,2]
[314841385,1708584638580,-500.0,0.00035616,2]
[314841386,1708584638590,-500.0,0.00035616,2]
[314841387,1708584638599,-500.0,0.00035616,2]
[314841388,1708584638609,-500.0,0.00035616,2]
[314841389,1708584638618,-500.0,0.00035616,2]
[314841390,1708584638628,-500.0,0.00035616,2]
[314841391,1708584638637,-500.0,0.00035616,2]
[314841392,1708584638647,-500.0,0.00035616,2]
[314841393,1708584638656,-500.0,0.00035616,2]
[314841394,1708584638665,-500.0,0.00035616,2]
[314841395,1708584638674,-500.0,0.00035616,2]
[314841396,1708584638683,-500.0,0.00035616,2]
[314841397,1708584638692,-500.0,0.00035616,2]
[314841398,1708584638702,-500.0,0.00035616,2]
[314841399,1708584638711,-500.0,0.00035616,2]
[314841400,1708584638721,-500.0,0.00035616,2]
[314841401,1708584638732,-500.0,0.00035616,2]
[314841402,1708584638741,-500.0,0.00035616,2]
[314841403,1708584638751,-500.0,0.00035616,2]
[314841404,1708584638760,-500.0,0.00035616,2]
[314841405,1708584638770,-500.0,0.00035616,2]
[314841406,1708584638780,-500.0,0.00035616,2]
[314841407,1708584638792,-665.39,0.00035616,2]
[314841408,1708584638802,-500.0,0.00035616,2]
[314841409,1708584638812,-500.0,0.00035616,2]
[314841410,1708584638822,-500.17041786,0.00035616,2]
[314841411,1708584638831,-500.0,0.00035616,2]
[314841412,1708584638843,-500.0,0.00035616,2]
[314841413,1708584638852,-500.0,0.00035616,2]
[314841414,1708584638862,-500.0,0.00035616,2]
[314841415,1708584638872,-513.52530712,0.00035616,2]
[314841416,1708584638883,-490.31178831,0.00035616,2]
[314841417,1708584638892,-500.0,0.00035616,2]
[314841418,1708584638902,-283.77112351,0.00035616,2]
[314841419,1708584638912,-500.0,0.00035616,2]
[314841420,1708584638923,-500.0,0.00035616,2]
[314841421,1708584638932,-606.92,0.00035616,2]
[314841422,1708584638942,-500.0,0.00035616,2]
[314841423,1708584638953,-503.54490492,0.00035616,2]
[314841424,1708584639312,-500.0,0.00035616,2]
[314841425,1708584639323,-500.0,0.00035616,2]
[314841426,1708584639333,-319.44204108,0.00035616,2]
[314841427,1708584639342,-500.0,0.00035616,2]
[314841428,1708584639352,-500.0,0.00035616,2]
[314841429,1708584639362,-502.8188103,0.00035616,2]
[314841430,1708584639371,-500.0,0.00035616,2]
[314841431,1708584639382,-500.0,0.00035616,2]
[314841432,1708584639393,-500.0,0.00035616,2]
[314841433,1708584639402,-500.0,0.00035616,2]
[314841434,1708584639412,-500.0,0.00035616,2]
[314841435,1708584639421,-500.0,0.00035616,2]
[314841436,1708584639432,-500.0,0.00035616,2]
[314841437,1708584639442,-509.90147591,0.00035616,2]
[314841438,1708584639451,-500.0,0.00035616,2]
[314841439,1708584639461,-500.0,0.00035616,2]
[314841440,1708584639470,-504.74678903,0.00035616,2]
[314841441,1708584639479,-500.0,0.00035616,2]
[314841442,1708584639490,-500.0,0.00035616,2]
[314841443,1708584639499,-500.0,0.00035616,2]
[314841444,1708584639508,-500.0,0.00035616,2]
[314841445,1708584639518,-500.0,0.00035616,2]
[314841446,1708584639528,-500.0,0.00035616,2]
[314841447,1708584639539,-500.0,0.00035616,2]
[314841448,1708584639550,-500.0,0.00035616,2]
[314841449,1708584639563,-500.0,0.00035616,2]
[314841450,1708584639574,-500.0,0.00035616,2]
[314841451,1708584639583,-517.58095926,0.00035616,2]
[314841452,1708584639594,-500.0,0.00035616,2]
[314841453,1708584639603,-500.0,0.00035616,2]
[314841454,1708584639613,-500.0,0.00035616,2]
[314841455,1708584639622,-500.0,0.00035616,2]
[314841456,1708584639632,-500.0,0.00035616,2]
[314841457,1708584639642,-500.0,0.00035616,2]
[314841458,1708584639653,-500.0,0.00035616,2]
[314841459,1708584639662,-666.15,0.00035616,2]
[314841460,1708584639672,-500.0,0.00035616,2]
[314841461,1708584639681,-500.0,0.00035616,2]
[314841462,1708584639691,-500.0,0.00035616,2]
[314841463,1708584639700,-306.5990975,0.00035616,2]
[314841464,1708584639710,-500.0,0.00035616,2]
[314841465,1708584639721,-500.0,0.00035616,2]
[314841466,1708584639730,-505.95677849,0.00035616,2]
[314841467,1708584639741,-500.0,0.00035616,2]
[314841468,1708584639751,-500.0,0.00035616,2]
[314841469,1708584639761,-500.0,0.00035616,2]
[314841470,1708584639770,-500.0,0.00035616,2]
[314841471,1708584639780,-500.0,0.00035616,2]
[314841472,1708584639789,-500.0,0.00035616,2]
[314841473,1708584639799,-500.0,0.00035616,2]
[314841474,1708584639808,-500.0,0.00035616,2]
[314841475,1708584639818,-500.0,0.00035616,2]
[314841476,1708584639827,-500.0,0.00035616,2]
[314841477,1708584639836,-500.0,0.00035616,2]
[314841478,1708584639845,-500.0,0.00035616,2]
[314841479,1708584639854,-500.0,0.00035616,2]
[314841480,1708584639864,-500.0,0.00035616,2]
[314841481,1708584639873,-500.0,0.00035616,2]
[314841482,1708584639882,-500.0,0.00035616,2]
[314841483,1708584639891,-500.0,0.00035616,2]
[314841484,1708584639900,-646.97,0.00035616,2]
[314841485,1708584639910,-906.84,0.00035616,2]
[314841486,1708584639919,-160.11970875,0.00035616,2]